[Event "Reykjavik Open 2024"]
[Site "Reykjavik"]
[Date "2024.03.19"]
[Round "7.42"]
[White "Gikas, Andreas Basilius"]
[Black "Prado, Alexandra"]
[Result "1-0"]
[ECO "B35"]
[WhiteElo "2104"]
[BlackElo "1877"]
[Annotator "RC"]
[PlyCount "74"]
[EventDate "2024.03.12"]
[EventCountry "ISL"]
[SourceTitle "playchess.com"]
[Source "ChessBase"]
[SourceQuality "1"]
[TimeControl "40/5400+30:1800+30"]

1. e4 {[%emt 0:00:03]} c5 {[%emt 0:00:53]} 2. Nf3 {[%emt 0:00:07]} g6 {[%emt 0:00:55]} 3. d4 {[%emt 0:00:10]} cxd4 {[%emt 0:00:57]} 4. Nxd4 {[%emt 0:00:09]} Bg7 {[%emt 0:00:49]} 5. Nc3 {[%emt 0:00:20]} Nc6 {[%emt 0:00:25]} 6. Be3 {[%emt 0:00:15]} Nf6 {[%emt 0:00:19]} 7. Bc4 {[%emt 0:00:09]} O-O {[%emt 0:00:22]} 8. Bb3 {[%emt 0:00:07]} e6 {[%emt 0:07:40]} 9. f4 {[%emt 0:01:04]} Qa5 {[%emt 0:22:47]} 10. O-O {[%emt 0:10:11]} d6 {[%emt 0:20:35]} 11. h3 {[%emt 0:05:55]} Rd8 {[%emt 0:08:15]} 12. Qf3 {[%emt 0:06:58]} d5 {[%emt 0:06:21]} 13. e5 {[%emt 0:03:04]} Nxd4 {[%emt 0:01:12]} 14. Bxd4 {[%emt 0:00:29]} Nd7 {[%emt 0:03:49]} 15. Ne2 {[%emt 0:10:21]} Nc5 {[%emt 0:04:14]} 16. c3 {[%emt 0:03:33]} Ne4 {[%emt 0:02:43]} 17. Rad1 {[%emt 0:01:25]} b5 {[%emt 0:00:40]} 18. a3 {[%emt 0:01:06]} Qc7 {[%emt 0:02:27]} 19. Qe3 {[%emt 0:01:05]} Bf8 {[%emt 0:00:49]} 20. Bc2 {[%emt 0:01:10]} Nc5 {[%emt 0:06:47]} 21. Rd2 {[%emt 0:06:44]} a5 {[%emt 0:00:53]} 22. b4 {[%emt 0:01:14]} Nd7 {[%emt 0:00:31]} 23. Bd3 {[%emt 0:00:26]} axb4 {[%emt 0:01:05]} 24. axb4 {[%emt 0:00:18]} Qc6 {[%emt 0:01:07]} 25. g4 {[%emt 0:10:32]} Bh6 {[%emt 0:01:39]} 26. h4 {[%emt 0:00:59]} Ra3 {[%emt 0:02:06]} 27. h5 {[%emt 0:02:51]} Bb7 {[%emt 0:01:15]} 28. Qh3 {[%emt 0:02:55]} Bg7 {[%emt 0:00:32]} 29. Qh4 {[%emt 0:08:05]} Rda8 {[%emt 0:01:10]} 30. hxg6 {[%emt 0:04:07]} hxg6 {[%emt 0:00:15]} 31. Qg5 {[%emt 0:07:05]} Ra1 {[%emt 0:00:47]} 32. Rdd1 {[%emt 0:00:39]} Rxd1 {[%emt 0:01:00]} 33. Rxd1 {[%emt 0:00:01]} Nb6 {[%emt 0:00:57]} 34. f5 {[%emt 0:01:00]} exf5 {[%emt 0:00:18]} 35. gxf5 {[%emt 0:00:17]} Nc4 {[%emt 0:00:31]} 36. f6 {[%emt 0:00:28]} Bf8 {[%emt 0:00:25]} 37. Bxg6 {[%emt 0:00:15]} fxg6 {[%emt 0:00:00]} 1-0

[Event "Reykjavik Open 2024"]
[Site "Reykjavik"]
[Date "2024.03.19"]
[Round "7.43"]
[White "Erskine-Pereira, Jack"]
[Black "Manish Anto Cristiano F"]
[Result "0-1"]
[ECO "A48"]
[WhiteElo "1903"]
[BlackElo "2286"]
[Annotator "TA"]
[PlyCount "56"]
[EventDate "2024.03.12"]
[EventCountry "ISL"]
[SourceTitle "playchess.com"]
[Source "ChessBase"]
[SourceQuality "1"]
[TimeControl "40/5400+30:1800+30"]

{[%evp 14,56,3,0,27,35,18,18,23,22,16,25,39,30,52,48,51,0,0,-61,-52,-93,-94,-121,-78,-181,-164,-166,-175,-361,-368,-338,-335,-441,-436,-454,-453,-448,-421,-523,-515,-771,-754,-733,-722]} 1. d4 {[%emt 0:00:17]} Nf6 {[%emt 0:01:24]} 2. Bf4 {[%emt 0:00:42]} g6 {[%emt 0:00:50]} 3. e3 {[%emt 0:00:48]} Bg7 {[%emt 0:00:09]} 4. Nf3 {[%emt 0:02:41]} O-O {[%emt 0:00:52]} 5. Be2 {[%emt 0:02:00]} d6 {[%emt 0:00:30]} 6. h3 {[%emt 0:02:19]} Nbd7 {[%emt 0:04:59]} 7. O-O {[%emt 0:01:32]} b6 {[%emt 0:03:57]} 8. c4 {[%emt 0:00:09]} c5 {[%emt 0:01:34]} 9. Nc3 {[%emt 0:01:30]} cxd4 {[%emt 0:01:22]} 10. exd4 {[%emt 0:00:52]} Bb7 {[%emt 0:00:34] Die Stellung ist ausgeglichen.} 11. Rc1 {[%emt 0:02:21]} Rc8 {[%emt 0:00:48]} 12. b3 {[%emt 0:02:49]} a6 {[%emt 0:06:42]} 13. Qd2 {[%emt 0:09:12]} Re8 {[%emt 0:02:07]} 14. Rfd1 {[%emt 0:01:18]} d5 {[%emt 0:12:54]} 15. cxd5 {[%emt 0:17:11]} (15. Ne5 $14) 15... b5 $11 {[%emt 0:02:42][%cal Od7b6]} 16. d6 {[%emt 0:08:23]} (16. Ne5 $11 Nxd5 17. Nxd5 Bxd5 18. Bf3 Bxf3 19. Nxf3) 16... exd6 $15 {[%emt 0:01:44][%cal Oc8c3]} 17. Be3 {[%emt 0:12:31]} Nb6 {[%emt 0:04:03][%cal Oc8c3] Schwarz steht aktiver.} 18. Bg5 {[%emt 0:05:55]} Qd7 {[%emt 0:08:20][%cal Oc8c3] Und jetzt ...Rxc3! wäre schön.} 19. Re1 {[%emt 0:05:21]} (19. Bf1 $17 {war angesagt.}) 19... b4 $19 {[%emt 0:06:32]} 20. Na4 {[%emt 0:08:38] [#]} Rxc1 $1 {[%emt 0:06:28]} 21. Rxc1 {[%emt 0:01:32]} (21. Qxc1 Nxa4 22. bxa4) 21... Nxa4 {[%emt 0:00:24]} 22. bxa4 {[%emt 0:02:06]} Ne4 {[%emt 0:00:21]} (22... Qxa4 23. Bc4 $17) 23. Qd3 {[%emt 0:02:15]} Nxg5 {[%emt 0:02:14] Schwarz steht klar auf Gewinn.} ({Schwächer ist} 23... Qxa4 24. Qc4 $19) 24. Nxg5 {[%emt 0:00:06]} Qe7 {[%emt 0:00:11]} (24... Qxa4 $2 25. Qd2 Bd5 26. Bc4 Bxc4 27. Rxc4 $17) 25. Qe3 {[%emt 0:06:59]} Qd8 {[%emt 0:06:37]} 26. Qf4 {[%emt 0:01:41]} Qf6 {[%emt 0:00:09]} (26... Rxe2 $2 {geht unter.} 27. Qxf7+ Kh8 28. Qxb7 $18) 27. Qd2 {[%emt 0:01:41] [#]} Rxe2 {[%emt 0:00:30][%mdl 512]} 28. Qxe2 {[%emt 0:00:23]} Qxg5 {[%emt 0:00:08] Gewichteter Fehlerwert: Weiß=0.66/Schwarz=0.05 (makellos) .  Fehler:       	Weiß=4     	---        Ungenau:       	Weiß=3     	Schwarz=1     OK:         	Weiß=7     	Schwarz=9     Bester:       	---       	Schwarz=5     Brilliant:      	---       	Schwarz=1} 0-1

[Event "Reykjavik Open 2024"]
[Site "Reykjavik"]
[Date "2024.03.19"]
[Round "7.44"]
[White "Owen, Garth I"]
[Black "Roberts, Tallulah"]
[Result "1/2-1/2"]
[ECO "A20"]
[WhiteElo "1834"]
[BlackElo "1671"]
[Annotator "NA RC"]
[PlyCount "87"]
[EventDate "2024.03.12"]
[EventCountry "ISL"]
[SourceTitle "playchess.com"]
[Source "ChessBase"]
[SourceQuality "1"]
[TimeControl "40/5400+30:1800+30"]

1. c4 {[%emt 0:00:05]} e5 {[%emt 0:00:16]} 2. g3 {[%emt 0:00:06]} h5 {[%emt 0:00:20]} 3. h4 {[%emt 0:05:46]} Nf6 {[%emt 0:03:19]} 4. Nc3 {[%emt 0:00:36]} Bb4 {[%emt 0:00:41]} 5. Bg2 {[%emt 0:00:25]} Bxc3 {[%emt 0:00:19]} 6. bxc3 {[%emt 0:00:10] A20: Englische Eröffnung.} d6 {[%emt 0:01:06]} 7. d3 {[%emt 0:04:01]} c6 {[%emt 0:01:49]} 8. Bg5 {[%emt 0:05:00]} Qa5 {[%emt 0:10:52]} 9. Qb3 {[%emt 0:01:20]} Nbd7 {[%emt 0:01:05]} 10. Qb4 {[%emt 0:05:27]} Qc7 {[%emt 0:04:18]} 11. e4 {[%emt 0:10:12]} O-O {[%emt 0:05:16]} 12. Ne2 {[%emt 0:01:31]} Nc5 {[%emt 0:05:06]} 13. Rd1 {[%emt 0:01:11]} a5 {[%emt 0:07:53]} 14. Qb1 {[%emt 0:02:00]} Nfd7 {[%emt 0:01:59]} 15. O-O {[%emt 0:07:38]} Ne6 {[%emt 0:02:52]} 16. Be3 {[%emt 0:00:53]} b6 {[%emt 0:06:45]} 17. Rd2 {[%emt 0:11:24]} Rb8 {[%emt 0:03:31]} 18. Qd1 {[%emt 0:03:08]} Nf6 {[%emt 0:02:50]} 19. Rb2 {[%emt 0:02:20]} Ng4 {[%emt 0:05:49]} 20. Bd2 {[%emt 0:01:16]} Nf6 {[%emt 0:00:35]} 21. Qb1 {[%emt 0:05:48]} Nc5 {[%emt 0:02:58]} 22. Bg5 {[%emt 0:00:45]} Ng4 {[%emt 0:08:21]} 23. f3 {[%emt 0:05:57]} Nf6 {[%emt 0:02:11]} 24. Bxf6 {[%emt 0:00:48]} gxf6 {[%emt 0:00:07]} 25. Qd1 {[%emt 0:06:20]} Kg7 {[%emt 0:04:59]} 26. f4 {[%emt 0:02:39]} Bg4 {[%emt 0:01:23]} 27. f5 {[%emt 0:01:41]} Rg8 {[%emt 0:01:36]} 28. Rd2 {[%emt 0:02:25]} Rbd8 {[%emt 0:02:28]} 29. Kh2 {[%emt 0:00:43]} Kf8 {[%emt 0:01:02]} 30. Bf3 {[%emt 0:01:37]} Ke7 {[%emt 0:00:31]} 31. Ng1 {[%emt 0:01:08]} Rg7 {[%emt 0:04:23]} 32. Nh3 {[%emt 0:03:51]} Rdg8 {[%emt 0:01:31]} 33. Rg2 {[%emt 0:02:44]} Qd8 {[%emt 0:03:14]} 34. Nf2 {[%emt 0:01:07]} Bxf3 {[%emt 0:00:41]} 35. Qxf3 {[%emt 0:00:08]} Rh7 {[%emt 0:00:21]} 36. Qd1 {[%emt 0:01:43]} b5 {[%emt 0:02:46]} 37. cxb5 {[%emt 0:01:26]} cxb5 {[%emt 0:00:09]} 38. d4 {[%emt 0:00:32]} Nd7 {[%emt 0:01:02]} 39. Qb3 {[%emt 0:00:55]} Qb6 {[%emt 0:00:33]} 40. Rd1 {[%emt 0:02:57]} Rd8 {[%emt 0:02:05] [#]} 41. Rd2 $16 {[%emt 0:04:18]} Qc6 {[%emt 0:09:04]} 42. Rb2 {[%emt 0:02:39]} Rb8 {[%emt 0:01:09]} 43. Qc2 {[%emt 0:02:58]} Nb6 {[%emt 0:02:25]} 44. Qd3 {[%emt 0:03:33]} 1/2-1/2

[Event "Reykjavik Open 2024"]
[Site "Reykjavik"]
[Date "2024.03.19"]
[Round "7.45"]
[White "Kazarian, Anna-Maja"]
[Black "Javet, Blaise"]
[Result "1-0"]
[ECO "B80"]
[WhiteElo "2206"]
[BlackElo "1942"]
[Annotator "RC"]
[PlyCount "51"]
[EventDate "2024.03.12"]
[EventCountry "ISL"]
[SourceTitle "playchess.com"]
[Source "ChessBase"]
[SourceQuality "1"]
[TimeControl "40/5400+30:1800+30"]

1. e4 {[%emt 0:00:11]} c5 {[%emt 0:00:06]} 2. Nf3 {[%emt 0:00:09]} d6 {[%emt 0:00:30]} 3. d4 {[%emt 0:00:23]} cxd4 {[%emt 0:00:00]} 4. Nxd4 {[%emt 0:00:03]} Nf6 {[%emt 0:00:00]} 5. Nc3 {[%emt 0:00:04]} a6 {[%emt 0:00:00]} 6. Be3 {[%emt 0:00:09]} e6 {[%emt 0:00:58]} 7. f3 {[%emt 0:00:25]} Nc6 {[%emt 0:01:14]} 8. g4 {[%emt 0:00:34]} Qc7 {[%emt 0:04:45]} 9. g5 {[%emt 0:02:10]} Nd7 {[%emt 0:00:48]} 10. Qd2 {[%emt 0:04:44]} Nxd4 {[%emt 0:01:30]} 11. Bxd4 {[%emt 0:00:35]} b5 {[%emt 0:02:39]} 12. O-O-O {[%emt 0:05:10]} b4 {[%emt 0:12:41]} 13. Na4 {[%emt 0:02:12]} Rb8 {[%emt 0:04:44]} 14. Kb1 {[%emt 0:03:18]} Bb7 {[%emt 0:03:06]} 15. b3 {[%emt 0:01:33]} Bc6 {[%emt 0:02:38]} 16. Bxa6 {[%emt 0:18:07]} Qa5 {[%emt 0:02:04]} 17. Bc4 {[%emt 0:03:56]} Bxa4 {[%emt 0:01:57]} 18. bxa4 {[%emt 0:00:29]} Qxa4 {[%emt 0:00:47]} 19. f4 {[%emt 0:05:14]} Qc6 {[%emt 0:09:33]} 20. Qe2 {[%emt 0:03:45]} Nc5 {[%emt 0:03:51]} 21. f5 {[%emt 0:07:21]} Nxe4 {[%emt 0:08:03]} 22. fxe6 {[%emt 0:00:45]} Nc3+ {[%emt 0:01:12]} 23. Bxc3 {[%emt 0:00:05]} bxc3+ {[%emt 0:00:08]} 24. Bb3 {[%emt 0:06:04]} fxe6 {[%emt 0:05:22]} 25. Qxe6+ {[%emt 0:00:08]} Be7 {[%emt 0:01:11]} 26. Rhe1 {[%emt 0:00:29]} 1-0

[Event "Reykjavik Open 2024"]
[Site "Reykjavik"]
[Date "2024.03.20"]
[Round "8.1"]
[White "Xu, Xiangyu"]
[Black "Suleymenov, Alisher"]
[Result "1/2-1/2"]
[ECO "E35"]
[WhiteElo "2623"]
[BlackElo "2506"]
[Annotator "TA"]
[PlyCount "88"]
[EventDate "2024.03.12"]
[EventCountry "ISL"]
[SourceTitle "playchess.com"]
[Source "ChessBase"]
[SourceQuality "1"]
[TimeControl "40/5400+30:1800+30"]

{[%evp 13,88,17,18,30,21,12,40,21,23,26,21,19,31,25,40,46,53,62,70,67,70,66,62,19,25,0,0,0,0,0,0,0,0,11,0,0,0,0,0,1,0,6,1,0,0,0,0,0,0,0,84,84,84,85,85,75,75,47,42,30,31,31,39,39,153,88,88,88,88,88,88,88,88,95,87,86,94]} 1. d4 {[%emt 0:01:51]} d5 {[%emt 0:00:03]} 2. c4 {[%emt 0:00:15]} e6 {[%emt 0:00:05]} 3. Nc3 {[%emt 0:00:05]} Nf6 {[%emt 0:00:05]} 4. cxd5 {[%emt 0:00:07]} exd5 {[%emt 0:00:05]} 5. Bg5 {[%emt 0:00:04]} Bb4 {[%emt 0:00:07]} 6. Qc2 {[%emt 0:01:08]} h6 {[%emt 0:06:33]} 7. Bh4 {[%emt 0:00:05]} O-O {[%emt 0:10:58]} 8. e3 {[%emt 0:00:05]} c5 {[%emt 0:02:36]} 9. dxc5 {[%emt 0:00:06]} Nc6 {[%emt 0:03:36]} 10. Nf3 {[%emt 0:03:09] White is slightly better.} Be6 {[%emt 0:14:33]} 11. Bb5 {[%emt 0:07:34]} Bxc5 {[%emt 0:10:56]} 12. O-O {[%emt 0:00:54]} Be7 {[%emt 0:00:48]} 13. Rfd1 {[%emt 0:07:36]} Qb6 {[%emt 0:01:11]} 14. Bxc6 {[%emt 0:01:25]} bxc6 {[%emt 0:01:25]} 15. Na4 {[%emt 0:00:06]} Qb7 {[%emt 0:06:25]} 16. Nd4 {[%emt 0:19:39]} Rac8 {[%emt 0:00:26]} 17. Bxf6 $1 {[%emt 0:01:36]} (17. Nc5 Bxc5 18. Qxc5 g5 $11) 17... Bxf6 {[%emt 0:00:07]} 18. Rac1 {[%emt 0:00:05]} Bg4 {[%emt 0:04:37]} 19. Rd3 {[%emt 0:00:06]} c5 $1 {[%emt 0:13:02]} 20. Rb3 {[%emt 0:18:20]} Qa8 {[%emt 0:00:09]} 21. Nxc5 {[%emt 0:00:04]} Rxc5 {[%emt 0:00:32]} 22. Qxc5 {[%emt 0:00:04]} Rc8 {[%emt 0:00:04]} 23. Qc6 {[%emt 0:00:10] Qxa8 would now be deadly.} Kh7 $1 {[%emt 0:04:07]} ({But not} 23... Rxc6 $2 24. Nxc6 d4 25. Rb8+ $18 (25. exd4 $2 {loses.} Bg5 $19) (25. exd4 $2 {too greedy.} Bg5 $19)) 24. h3 $1 {[%emt 0:00:09] Threatens to win with Qxa8.} Rxc6 {[%emt 0:02:10]} 25. Nxc6 {[%emt 0:00:04][%cal Ob3b8] And now Rb8! would win.} Bd7 {[%emt 0:02:29]} 26. Rb8 {[%emt 0:00:05] Repels Bxc6} Qxc6 {[%emt 0:00:04]} 27. Rxc6 {[%emt 0:00:04]} Bxc6 {[%emt 0:00:02]} 28. Rc8 {[%emt 0:00:22]} Bb5 {[%emt 0:00:38]} 29. Rc5 {[%emt 0:00:09]} a6 {[%emt 0:00:51]} 30. b3 $1 {[%emt 0:00:04][%cal Oa2a4]} d4 {[%emt 0:02:29]} 31. a4 {[%emt 0:00:05]} Be2 {[%emt 0:01:18]} (31... Be7 $1 $11 32. Rd5 Bd3) 32. exd4 $16 {[%emt 0:00:10]} Bxd4 {[%emt 0:00:18]} 33. Rc2 {[%emt 0:00:05]} Bh5 {[%emt 0:00:20]} 34. b4 {[%emt 0:00:17][%mdl 1024] aiming for g4. White has strong compensation.} f6 {[%emt 0:03:26]} 35. Rc6 {[%emt 0:04:39]} Be2 {[%emt 0:02:08]} 36. Re6 {[%emt 0:00:21]} Be5 $1 {[%emt 0:00:40]} 37. f4 {[%emt 0:00:05]} Bc4 $1 {[%emt 0:01:10]} 38. Rc6 {[%emt 0:00:05]} Bd4+ {[%emt 0:07:05]} (38... Bd5 $1 $14 39. Rxa6 Bxf4) 39. Kh1 {[%emt 0:06:49]} (39. Kh2 $142 Bf1 40. Rc1) 39... Bf1 {[%emt 0:00:03] [#] White is better.} 40. Rc1 $1 {[%emt 0:17:24]} Be2 {[%emt 0:00:04] [#]} 41. Re1 $1 {[%emt 0:30:05]} Bh5 {[%emt 0:30:08]} 42. Re6 {[%emt 0:00:03]} Bc3 {[%emt 0:01:41]} 43. b5 {[%emt 0:00:05]} axb5 {[%emt 0:00:49]} 44. axb5 {[%emt 0:00:04]} Bd2 {[%emt 0:00:00] Weighted Error Value: White=0.06 (flawless) /Black=0.09 (flawless) .  Mistake:       	White=1     	Black=2      Inaccurate:     	White=2     	Black=1      OK:         	White=12    	Black=14     Best:        	White=3     	Black=4      Strong:       	White=5     	Black=4} 1/2-1/2

[Event "Reykjavik Open 2024"]
[Site "Reykjavik"]
[Date "2024.03.20"]
[Round "8.2"]
[White "Deac, Bogdan-Daniel"]
[Black "Stefansson, Hannes"]
[Result "1-0"]
[ECO "C65"]
[WhiteElo "2690"]
[BlackElo "2481"]
[Annotator "TA"]
[PlyCount "99"]
[EventDate "2024.03.12"]
[EventCountry "ISL"]
[SourceTitle "playchess.com"]
[Source "ChessBase"]
[SourceQuality "1"]
[TimeControl "40/5400+30:1800+30"]

{[%evp 11,99,0,4,7,0,0,15,13,14,18,20,0,0,2,4,0,6,10,29,22,47,39,37,52,49,43,33,36,43,26,35,30,64,59,121,116,113,120,118,109,134,116,117,75,102,93,90,100,114,105,107,106,105,105,105,105,105,105,105,105,134,134,105,105,105,106,143,143,143,105,105,105,105,105,105,105,105,105,105,105,105,105,105,109,109,80,12850,12379,6609,6070]} 1. e4 {[%emt 0:00:03]} e5 {[%emt 0:00:39]} 2. Nf3 {[%emt 0:00:03]} Nc6 {[%emt 0:00:21]} 3. Bb5 {[%emt 0:01:26]} Nf6 {[%emt 0:00:49]} 4. d3 {[%emt 0:00:31]} Bc5 {[%emt 0:01:25]} 5. O-O {[%emt 0:05:16]} Nd4 {[%emt 0:03:05]} 6. Nxd4 {[%emt 0:00:41]} Bxd4 {[%emt 0:00:07]} 7. c3 {[%emt 0:00:04]} Bb6 {[%emt 0:00:45]} 8. Ba4 {[%emt 0:00:11]} O-O {[%emt 0:03:05]} 9. Bg5 {[%emt 0:02:00][%cal Bc1g5,Bg5h4,Bh4g3][%mdl 32] The position is equal.} h6 {[%emt 0:03:42]} 10. Bh4 {[%emt 0:03:50]} d6 {[%emt 0:02:55]} 11. Nd2 {[%emt 0:01:15]} g5 {[%emt 0:04:53][%cal Oc8g4] ...Bg4! would now be deadly.} 12. Bg3 {[%emt 0:00:13]} Bg4 {[%emt 0:03:26]} 13. Qe1 {[%emt 0:00:10]} Nh5 {[%emt 0:06:06]} 14. Bd1 {[%emt 0:02:49]} Qd7 {[%emt 0:08:03]} 15. Nc4 {[%emt 0:08:09][%cal Og3e5]} Bxd1 {[%emt 0:11:50]} 16. Qxd1 {[%emt 0:01:41]} Nxg3 {[%emt 0:01:50]} 17. hxg3 {[%emt 0:00:27]} d5 {[%emt 0:10:14]} 18. exd5 {[%emt 0:11:02]} Qxd5 {[%emt 0:00:33]} 19. Qe2 {[%emt 0:01:06]} Rad8 {[%emt 0:11:02]} 20. Rad1 {[%emt 0:02:58]} Rfe8 {[%emt 0:00:33]} 21. Rfe1 {[%emt 0:07:06][%cal Og3g4]} Re6 {[%emt 0:07:23]} 22. Qe4 {[%emt 0:01:19][%cal Rc4e5]} (22. Nxe5 f6 (22... Qxa2 $2 23. Qh5 $18) 23. d4 Ree8 $16 (23... fxe5 24. dxe5 Bxf2+ 25. Qxf2 $14)) 22... f5 {[%emt 0:04:55] [#]} 23. Qxd5 $1 $16 {[%emt 0:21:44]} ({Don't play} 23. Qxf5 Rf8 24. Nxb6 Rxb6) 23... Rxd5 {[%emt 0:00:06] [#]} 24. d4 $1 {[%emt 0:00:08][%mdl 512]} e4 {[%emt 0:00:17] [#]} 25. a4 $1 {[%emt 0:09:44]} f4 {[%emt 0:01:41] Prevents Ne3.} 26. gxf4 {[%emt 0:12:02]} gxf4 {[%emt 0:00:04]} 27. Ne5 {[%emt 0:02:47]} c5 {[%emt 0:01:58][%cal Rc5d4]} 28. Rxe4 {[%emt 0:00:13][%cal Od1e1]} cxd4 {[%emt 0:00:05]} 29. cxd4 {[%emt 0:00:04]} Bxd4 {[%emt 0:03:25]} 30. Rexd4 {[%emt 0:01:13]} Rxd4 {[%emt 0:00:08]} 31. Rxd4 {[%emt 0:00:01]} Rxe5 {[%emt 0:00:09]} 32. Rxf4 {[%emt 0:00:01][%mdl 4096] Endgame. KR-KR} b5 {[%emt 0:01:48]} 33. a5 {[%emt 0:01:15]} b4 {[%emt 0:01:09]} 34. Rxb4 {[%emt 0:02:20]} Rxa5 {[%emt 0:00:07]} 35. Rb7 {[%emt 0:00:04]} Ra2 {[%emt 0:03:20]} 36. Kh2 {[%emt 0:02:17]} a5 {[%emt 0:00:06]} 37. f4 {[%emt 0:00:43]} a4 {[%emt 0:00:45]} 38. Kh3 {[%emt 0:00:22] Threatens to win with Kh4. White is more active.} a3 {[%emt 0:00:18]} 39. bxa3 {[%emt 0:01:50]} Rxa3+ {[%emt 0:00:06]} 40. Kg4 {[%emt 0:00:37]} Ra2 {[%emt 0:00:12]} 41. g3 {[%emt 0:30:15] And now Kh5 would win.} Ra3 {[%emt 0:35:07]} 42. Rc7 {[%emt 0:00:00]} Rb3 {[%emt 0:00:00]} 43. Kh4 {[%emt 0:00:00] aiming for g4.} Rf3 {[%emt 0:00:00]} 44. Ra7 {[%emt 0:00:00]} Kh8 {[%emt 0:00:00]} 45. Rb7 {[%emt 0:00:00]} Kg8 {[%emt 0:00:00]} 46. Re7 {[%emt 0:00:00]} Kh8 {[%emt 0:00:00]} 47. Kg4 {[%emt 0:00:00]} Ra3 {[%emt 0:00:00]} 48. f5 {[%emt 0:00:00]} Kg8 $2 {[%emt 0:00:00][%mdl 8192]} (48... Ra5 $16) 49. Kh4 $18 {[%emt 0:00:00] Intending g4 and mate.} Rb3 {[%emt 0:00:00]} 50. g4 {[%emt 0:00:00] Weighted Error Value: White=0.05 (flawless) /Black=0.10 (very precise) .  Loses game:     	---       	Black=1      Mistake:       	---       	Black=1      Inaccurate:     	White=1     	Black=3      OK:         	White=16    	Black=21     Best:        	White=1     	Black=3      Strong:       	White=2     	---        Brilliant:      	White=1     	---} 1-0